bitfinex/quotes_SOLUSD_20260224
["timestamp","ask_amount","ask_price","bid_price","bid_amount"]
[1771900573805,1.10510293,78.177,78.151,1.05787067]
[1771900575506,1.10510293,78.201,78.17,11.24221443]
[1771900575706,1.10510293,78.201,78.168,1.05787067]
[1771900575707,1.10510293,78.199,78.168,1.05787067]
[1771900576002,1.10510293,78.179,78.143,1.05787067]
[1771900576315,1.10510293,78.179,78.14,25.09756496]
[1771900576503,1.10510293,78.179,78.141,1.05787067]
[1771900577115,11.24221443,78.17,78.133,1.05787067]
[1771900577298,1.10510293,78.169,78.133,1.05787067]
[1771900578007,1.04780616,78.167,78.13,11.24221443]
[1771900578727,1.04780616,78.167,78.131,12.79901703]
[1771900579425,1.04780616,78.167,78.131,13.86595244]
[1771900579627,1.04780616,78.167,78.132,1.06693541]
[1771900580734,1.04780616,78.165,78.132,1.06693541]
[1771900581624,1.04780616,78.165,78.13,17.83821585]
[1771900582124,1.06070621,78.165,78.131,1.06614855]
[1771900582331,1.06070621,78.165,78.14,6.10526659]
[1771900582506,1.06070621,78.165,78.13,17.83821585]
[1771900582706,1.06070621,78.165,78.131,1.06591735]
[1771900584633,1.06070621,78.163,78.131,1.06591735]
[1771900585010,1.06070621,78.163,78.133,1.06544993]
[1771900585727,1.06070621,78.149,78.12,0.2]
[1771900586022,1.06070621,78.156,78.131,1.06523088]
[1771900586811,1.06070621,78.155,78.131,13.8641346]
[1771900587123,1.06070621,78.155,78.131,1.06523088]
[1771900588332,1.06070621,78.155,78.132,12.79885322]
[1771900588933,12.79408422,78.162,78.141,1.08008874]
[1771900590927,12.79295875,78.168,78.141,1.08008874]
[1771900591127,13.85366496,78.168,78.141,1.08008874]
[1771900591435,13.85366496,78.168,78.12,0.2]
[1771900591436,1.06070621,78.159,78.12,0.2]
[1771900591624,1.06070621,78.159,78.12,5.23911804]
[1771900591820,1.06070621,78.159,78.121,1.08008874]
[1771900592336,1.06070621,78.167,78.131,1.08008874]
[1771900594130,1.06070621,78.165,78.132,1.08008874]
[1771900596543,12.79361342,78.164,78.14,5.03911804]
[1771900596741,12.79361342,78.164,78.141,1.08008874]
[1771900596954,1.06070621,78.163,78.141,1.08008874]
[1771900597752,1.06070621,78.177,78.151,1.08008874]
[1771900597930,1.06070621,78.177,78.133,44.79541294]
[1771900597931,12.79050432,78.183,78.161,1.08008874]
[1771900598326,44.76676514,78.183,78.161,1.08008874]
[1771900598528,1.06070621,78.182,78.161,1.08008874]
[1771900598848,1.06070621,78.182,78.154,1.08008874]
[1771900601148,1.06070621,78.18,78.154,1.08008874]
[1771900602858,13.85186496,78.179,78.154,1.08008874]
[1771900603155,45.82976183,78.179,78.154,1.08008874]
[1771900603331,1.06070621,78.178,78.154,1.08008874]
[1771900604350,44.76905562,78.179,78.154,1.08008874]
[1771900605148,1.06070621,78.18,78.154,1.08008874]
[1771900607939,1.10027921,78.178,78.154,1.08008874]
[1771900608140,1.10027921,78.192,78.16,5.03911804]
[1771900608459,1.10027921,78.209,78.171,1.06488092]
[1771900608761,1.10027921,78.209,78.18,5.03911804]
[1771900608956,1.10027921,78.209,78.18,6.10399896]
[1771900609156,1.10027921,78.209,78.181,1.06488092]
[1771900609359,1.10027921,78.208,78.181,1.06488092]
[1771900610362,1.10027921,78.206,78.174,1.06488092]
[1771900610671,1.10027921,78.189,78.151,1.06488092]
[1771900612144,1.10027921,78.187,78.151,1.06488092]
[1771900614959,44.76390238,78.188,78.161,1.06488092]
[1771900614960,13.89029276,78.186,78.161,1.06488092]
[1771900615166,1.10027921,78.185,78.161,1.06488092]
[1771900617360,12.79034073,78.184,78.161,1.06488092]
[1771900619667,1.10027921,78.186,78.163,1.06488092]
[1771900620682,1.10027921,78.192,78.17,6.10051836]
[1771900620892,1.10027921,78.192,78.125,5.36086188]
[1771900620893,1.10027921,78.189,78.128,1.06488092]
[1771900621169,6.13591665,78.14,78.12,0.2]
[1771900621354,1.10027921,78.139,78.12,0.2]
[1771900621979,1.10027921,78.139,78.111,1.06488092]
[1771900621980,1.10027921,78.129,78.1,0.2]
[1771900622162,1.10027921,78.119,78.1,0.2]
[1771900623080,1.10027921,78.117,78.1,0.2]
[1771900624462,12.80059071,78.122,78.101,1.06488092]
[1771900624786,12.79868941,78.133,78.111,1.06488092]
[1771900625158,31.99572054,78.136,78.111,1.06488092]
[1771900625359,1.10027921,78.135,78.103,1.06488092]
[1771900625860,1.10027921,78.129,78.103,1.06488092]
[1771900626581,1.10027921,78.129,78.1,1.26488092]
[1771900627286,5.03563744,78.13,78.1,1.26488092]
[1771900627287,1.10027921,78.127,78.1,0.2]
[1771900627986,1.10027921,78.127,78.101,1.06488092]
[1771900628884,1.10027921,78.127,78.1,0.2]
[1771900629257,1.10027921,78.127,78.09,5.23563744]
[1771900629258,1.10027921,78.127,78.09,0.2]
[1771900629468,1.10027921,78.099,78.06,0.2]
[1771900629791,1.10027921,78.089,78.06,0.2]
[1771900630085,1.10027921,78.089,78.06,18.04623335]
[1771900630257,5.03563744,78.08,78.06,0.2]
[1771900630462,1.10027921,78.069,78.02,5.23563744]
[1771900630691,1.10027921,78.059,78.02,5.23563744]
[1771900630985,1.10027921,78.059,78.021,1.06488092]
[1771900631361,1.10027921,78.059,78.02,5.23563744]
[1771900631362,1.10027921,78.049,78.02,0.2]
[1771900631561,1.10027921,78.029,78.01,1e-08]
[1771900631771,1.10027921,78.019,77.994,0.78427878]
[1771900632291,1.10027921,78.029,77.994,0.78427878]
[1771900633295,12.81443417,78.037,78.011,1.06488092]
[1771900634188,1.10027921,78.046,78.011,1.06488092]
[1771900634394,1.10027921,78.059,78.021,1.06488092]
[1771900634886,1.10027921,78.049,78.021,1.06488092]
[1771900635084,1.10027921,78.049,78.013,1.06488092]
[1771900635290,1.10027921,78.047,78.01,11.27958518]
[1771900635491,1.10027921,78.047,78.011,13.88358597]
[1771900635679,1.10027921,78.047,78.012,1.06488092]
[1771900635878,1.10027921,78.056,78.03,11.27958518]
[1771900636075,12.81147908,78.055,78.03,11.27958518]
[1771900636294,1.10027921,78.056,78.03,11.27958518]
[1771900636464,12.81074031,78.06,78.03,12.3444661]
[1771900636785,1.10027921,78.059,78.018,1.06488092]
[1771900636991,1.10027921,78.059,78.02,11.27958518]
[1771900637162,1.10027921,78.059,78.021,1.06488092]
[1771900637363,12.8109867,78.058,78.021,1.06488092]
[1771900637567,1.10027921,78.057,78.021,13.88186421]
[1771900637892,1.10027921,78.057,78.022,1.06488092]
[1771900638183,12.81022153,78.063,78.031,1.06862421]
[1771900639576,12.81022153,78.063,78.032,1.06862421]
[1771900639971,11.27958518,78.07,78.04,11.27958518]
[1771900640175,6.69178607,78.095,78.051,1.06862421]
[1771900640176,1.0925522,78.085,78.051,1.06862421]
[1771900641571,1.0925522,78.085,78.05,11.27958518]
[1771900641572,1.00969093,78.083,78.05,11.27958518]
[1771900641786,1.00969093,78.079,78.043,12.81328925]
[1771900641993,1.00969093,78.079,78.05,11.27958518]
[1771900643793,1.00969093,78.077,78.05,11.27958518]
[1771900644496,1.00969093,78.077,78.044,1.03961189]
[1771900644680,1.00969093,78.077,78.042,12.81349456]
[1771900645875,1.00969093,78.077,78.042,13.85310645]
[1771900646094,12.80803319,78.076,78.043,1.03961189]
[1771900646301,1.00969093,78.075,78.043,1.03961189]
[1771900648397,1.00969093,78.075,78.045,1.03961189]
[1771900648601,13.81793357,78.075,78.045,1.03961189]
[1771900650388,1.00969093,78.074,78.045,1.03961189]
[1771900650804,1.00969093,78.074,78.045,13.85263325]
[1771900651379,12.80824264,78.075,78.051,1.03961189]
[1771900651688,1.00969093,78.081,78.051,1.03961189]
[1771900652191,12.80416957,78.1,78.071,1.03961189]
[1771900652384,1.00969093,78.106,78.073,1.03961189]
[1771900652385,12.80327763,78.105,78.073,1.03961189]
[1771900652591,1.00969093,78.104,78.073,1.03961189]
[1771900654282,12.80327763,78.105,78.081,1.03961189]
[1771900654478,1.00969093,78.109,78.081,1.03961189]
[1771900655599,12.80229417,78.111,78.041,1.03961189]
[1771900655600,1.00969093,78.089,78.041,1.03961189]
[1771900655810,1.00969093,78.069,78.03,11.27958518]
[1771900655989,12.28927611,78.06,78.031,1.03961189]
[1771900656511,1.00969093,78.06,78.032,12.81525527]
[1771900656683,1.00969093,78.06,78.032,13.85486716]
[1771900656882,1.00969093,78.06,78.033,1.03961189]
[1771900657506,1.00969093,78.058,78.03,11.27958518]
[1771900657682,1.00969093,78.058,78.02,11.27958518]
[1771900657998,0.80969093,78.058,78.023,1.03961189]
[1771900658198,12.81082258,78.059,78.031,1.03961189]
[1771900658904,12.80934569,78.068,78.033,1.03961189]
[1771900659489,12.80770511,78.078,78.041,1.03961189]
[1771900659788,12.60770511,78.078,78.041,1.03961189]
[1771900659997,1.00969093,78.077,78.041,1.03961189]
[1771900660319,1.00969093,78.049,78.022,1.03961189]
[1771900661105,12.81262812,78.048,78.022,1.03961189]
[1771900661806,13.82231905,78.048,78.022,1.03961189]
[1771900662192,1.00969093,78.047,78.014,1.03961189]
[1771900663012,1.00969093,78.047,78.01,11.27958518]
[1771900663207,3.69383402,78.062,78.005,0.28432314]
[1771900663208,1.00969093,78.039,78.005,0.28432314]
[1771900663914,1.00969093,78.039,78.006,1.03961189]
[1771900665320,13.8238902,78.039,78.022,0.2]
[1771900665605,1.00969093,78.043,78.022,0.2]
[1771900665808,12.81338523,78.044,78.022,0.2]
[1771900666003,12.81338523,78.044,78.022,1.23961189]
[1771900666318,12.81338523,78.044,78.032,0.2]
[1771900666685,12.81338523,78.044,78.022,0.2]
[1771900666686,1.00969093,78.039,78.022,0.2]
[1771900667111,0.80969093,78.039,78.022,0.2]
[1771900667501,12.81426997,78.038,78.022,0.2]
[1771900668712,12.81246396,78.049,78.023,0.85555291]
[1771900669013,12.81246396,78.049,78.022,0.2]
[1771900669014,44.84362387,78.049,78.022,0.2]
[1771900669194,0.89265933,78.048,78.022,0.2]
[1771900670004,44.84362387,78.049,78.022,1.05555291]
[1771900672610,12.81131495,78.056,78.022,13.01679068]
[1771900672796,12.81131495,78.056,78.023,0.85555291]
[1771900672998,0.89265933,78.055,78.023,0.85555291]
[1771900674024,0.89265933,78.049,78.023,0.85555291]
[1771900674315,0.89265933,78.049,78.022,0.2]
[1771900674617,44.84419843,78.048,78.022,0.2]
[1771900674810,0.89265933,78.039,78.022,0.2]
[1771900675309,0.89265933,78.039,78.014,0.85555291]
[1771900676113,12.81165801,78.054,78.021,0.85555291]
[1771900676414,0.89265933,78.049,78.011,0.85555291]
[1771900676997,0.89265933,78.049,78.021,0.85555291]
[1771900677900,12.81262812,78.048,78.021,0.85555291]
[1771900679801,5.05394445,78.04,78.003,0.85555291]
[1771900679999,0.89265933,78.039,78.003,0.85555291]
[1771900680906,0.89265933,78.037,78.003,0.85555291]
[1771900682115,12.81426997,78.038,78.011,0.85555291]
[1771900682302,12.81373554,78.042,78.011,0.85555291]
[1771900682699,0.89265933,78.041,78.011,0.85555291]
[1771900683119,0.89265933,78.039,78.011,0.85555291]
[1771900683325,0.89265933,78.039,78.012,12.81854073]
[1771900683623,0.89265933,78.039,78.013,0.85555291]
[1771900684821,0.89265933,78.054,78.021,0.85555291]
[1771900685007,11.28564632,78.06,78.031,0.85555291]
[1771900685008,0.89265933,78.06,78.031,0.85555291]
[1771900685200,0.89265933,78.058,78.031,0.85555291]
[1771900685707,0.89265933,78.058,78.014,0.85555291]
[1771900687139,0.89265933,78.049,78.014,0.85555291]
[1771900687954,0.89265933,78.056,78.021,0.85555291]
[1771900688636,32.0233908,78.068,78.031,0.85555291]
[1771900688834,0.89265933,78.067,78.031,0.85555291]
[1771900689151,0.89265933,78.059,78.02,11.28564632]
[1771900689327,0.89265933,78.059,78.021,0.85555291]
[1771900689935,0.89265933,78.057,78.021,0.85555291]
[1771900690144,0.89265933,78.057,78.022,0.85555291]
[1771900690434,0.89265933,78.057,78.023,0.85555291]
[1771900690617,12.8109867,78.058,78.031,0.85555291]
[1771900690819,32.91673125,78.067,78.031,0.85555291]
[1771900691122,13.70233319,78.066,78.031,0.85555291]
[1771900691322,0.89265933,78.065,78.031,0.85555291]
[1771900693025,0.89265933,78.063,78.032,0.85555291]
[1771900695618,13.70298958,78.062,78.034,0.85555291]
[1771900695814,12.81033025,78.062,78.034,0.85555291]
[1771900696037,0.89265933,78.069,78.034,0.85555291]
[1771900696336,13.70241151,78.066,78.034,0.85555291]
[1771900696542,13.70241151,78.066,78.041,0.85555291]
[1771900696738,0.89265933,78.08,78.051,0.85555291]
[1771900696938,0.89265933,78.069,78.03,11.28564632]
[1771900697239,0.89265933,78.069,78.032,0.85555291]
[1771900698126,0.72795524,78.067,78.03,11.28564632]
[1771900698439,0.72795524,78.067,78.031,0.77832663]
[1771900700336,0.72795524,78.065,78.031,0.77832663]
[1771900701643,0.72429431,78.059,78.024,0.73000186]
[1771900701824,0.72429431,78.059,78.031,0.73000186]
[1771900702438,0.72429431,78.057,78.02,11.28564632]
[1771900702637,0.72429431,78.057,78.021,0.73000186]
[1771900703226,0.72429431,78.057,78.031,0.73000186]
[1771900705030,0.72429431,78.063,78.032,0.73000186]
[1771900705232,0.72429431,78.061,78.032,0.73000186]
[1771900705437,0.72429431,78.061,78.03,5.05220025]
[1771900705631,0.72429431,78.061,78.031,0.73000186]
[1771900707623,0.72429431,78.059,78.031,0.73000186]
[1771900708940,0.72429431,78.057,78.031,0.73000186]
[1771900710743,0.72429431,78.057,78.025,0.73000186]
[1771900711657,0.72429431,78.055,78.031,0.73000186]
[1771900713040,0.72429431,78.079,78.033,0.73000186]
[1771900713348,0.72429431,78.079,78.041,0.73000186]
[1771900713733,0.72429431,78.079,78.043,0.73000186]
[1771900713934,0.72429431,78.069,78.037,0.73000186]
[1771900715828,5.05220025,78.07,78.037,0.73000186]
[1771900715829,0.72429431,78.067,78.037,0.73000186]
[1771900718649,0.72429431,78.065,78.037,0.73000186]
[1771900718962,0.72429431,78.065,78.031,0.73000186]
[1771900720751,0.72429431,78.078,78.05,5.05220025]
[1771900720932,0.72429431,78.078,78.047,0.73000186]
[1771900721257,5.05220025,78.08,78.047,0.73000186]
[1771900721258,0.72429431,78.079,78.047,0.73000186]
[1771900722553,0.72429431,78.079,78.036,0.73000186]
[1771900722729,0.72429431,78.067,78.033,0.73000186]
[1771900724548,0.72429431,78.065,78.033,0.73000186]
[1771900725254,0.72429431,78.065,78.035,0.73000186]
[1771900726646,12.81000204,78.064,78.037,0.73000186]
[1771900727046,0.72429431,78.063,78.037,0.73000186]
[1771900730654,12.81033025,78.062,78.038,13.44963381]
[1771900730860,13.47723174,78.062,78.039,0.63536384]
[1771900732863,0.66690149,78.061,78.039,0.63536384]
[1771900736470,12.80980779,78.066,78.04,0.63536384]
[1771900736694,0.66690149,78.065,78.04,0.63536384]
[1771900737072,0.66690149,78.065,78.029,32.0392761]
[1771900737257,0.66690149,78.065,78.031,0.63536384]
[1771900739776,0.66690149,78.063,78.032,0.63536384]
[1771900741261,0.66690149,78.061,78.034,0.63536384]
[1771900743971,0.66690149,78.061,78.035,12.8147626]
[1771900744208,0.66690149,78.061,78.036,0.63536384]
[1771900744681,0.66690149,78.059,78.036,0.63536384]
[1771900746086,0.66690149,78.057,78.036,0.63536384]
[1771900746663,0.66690149,78.061,78.038,0.63536384]
[1771900747167,32.01545679,78.088,78.051,0.63536384]
[1771900747358,5.0519725,78.08,78.041,0.63536384]
[1771900747563,5.0519725,78.07,78.041,0.63536384]
[1771900747771,5.0519725,78.08,78.041,0.63536384]
[1771900748482,44.82639378,78.079,78.041,0.63536384]
[1771900749181,0.66690149,78.078,78.041,0.63536384]
[1771900750579,0.66690149,78.076,78.041,0.63536384]
[1771900752592,0.66690149,78.074,78.041,0.63536384]
[1771900752808,0.66690149,78.074,78.023,0.63536384]
[1771900753085,108.86967658,78.075,78.023,0.63536384]
[1771900753086,0.66690149,78.069,78.023,0.63536384]
[1771900754088,0.66690149,78.069,78.041,0.63536384]
[1771900755173,0.66690149,78.067,78.041,0.63536384]
[1771900757571,12.80967386,78.066,78.041,0.63536384]
[1771900758274,0.62168848,78.065,78.041,0.63536384]
[1771900759390,12.80967386,78.066,78.041,0.63536384]
[1771900760566,0.62168848,78.07,78.041,0.63536384]
[1771900761987,0.60017734,78.089,78.051,0.62290631]
[1771900762491,0.60017734,78.087,78.051,0.62290631]
[1771900762797,12.80639295,78.086,78.053,0.62290631]
[1771900765091,0.60017734,78.093,78.061,0.62290631]
[1771900766973,12.805409,78.092,78.062,12.81033025]
[1771900767173,12.805409,78.092,78.063,0.62290631]
[1771900768174,12.80484673,78.096,78.063,0.62290631]
[1771900768374,12.80484673,78.096,78.071,0.62290631]
[1771900768575,0.60017734,78.104,78.071,0.62290631]
[1771900768877,12.80360549,78.103,78.071,0.62290631]
[1771900769201,5.0519725,78.11,78.072,45.11473608]
[1771900769392,13.4024736,78.111,78.081,0.62290631]
[1771900769807,0.60017734,78.11,78.081,0.62290631]
[1771900770096,12.80229626,78.111,78.06,12.81054571]
[1771900770097,0.60017734,78.089,78.06,12.81054571]
[1771900770492,44.80803168,78.111,78.06,17.86251821]
[1771900770493,0.60017734,78.099,78.06,17.86251821]
[1771900770691,0.60017734,78.099,78.07,5.0519725]
[1771900771196,0.60017734,78.105,78.07,5.0519725]
[1771900771495,0.60017734,78.103,78.07,5.0519725]
[1771900771680,0.60017734,78.103,78.071,12.80885347]
[1771900771885,0.60017734,78.103,78.072,0.62290631]
[1771900773898,13.40394676,78.102,78.074,0.62290631]
[1771900774077,12.80376942,78.102,78.074,0.62290631]
[1771900774278,0.60017734,78.101,78.074,0.62290631]
[1771900774478,5.0519725,78.11,78.076,0.62290631]
[1771900774678,0.60017734,78.109,78.076,0.62290631]
[1771900776001,0.60017734,78.124,78.091,0.62290631]
[1771900776199,0.60017734,78.119,78.091,0.62290631]
[1771900777076,0.60017734,78.109,78.077,12.80786915]
[1771900777276,0.60017734,78.109,78.078,0.62290631]
[1771900777502,0.60017734,78.099,78.078,0.62290631]
[1771900778479,0.60017734,78.109,78.08,0.62290631]
[1771900779802,0.60017734,78.107,78.08,0.62290631]
[1771900780798,0.60017734,78.107,78.08,13.43016719]
[1771900781004,0.60017734,78.107,78.081,0.62290631]
[1771900782903,12.80311371,78.106,78.081,0.62290631]
[1771900783109,0.60017734,78.105,78.081,0.62290631]
[1771900783307,0.60017734,78.105,78.043,60.30795964]
[1771900783308,0.60017734,78.089,78.061,0.62290631]
[1771900783605,0.60017734,78.079,78.051,0.62290631]
[1771900784000,0.60017734,78.086,78.052,0.62290631]
[1771900784717,0.60017734,78.086,78.056,0.62290631]
[1771900787895,0.60042053,78.079,78.051,12.81213565]
[1771900789814,0.60042053,78.077,78.042,12.81361318]
[1771900790312,0.60042053,78.077,78.043,0.58112551]
[1771900792112,0.59176608,78.069,78.043,0.58112551]
[1771900792417,0.59176608,78.069,78.038,0.56953366]
[1771900794613,12.80934569,78.068,78.039,12.81410576]
[1771900794816,0.59176608,78.067,78.04,0.56953366]
[1771900795024,0.59176608,78.067,78.04,5.62150616]
[1771900796321,0.59176608,78.067,78.04,5.0519725]
[1771900796615,0.59176608,78.067,78.041,0.56953366]
[1771900796914,5.0519725,78.07,78.041,0.56953366]
[1771900796915,0.59176608,78.065,78.042,0.56953366]
[1771900797296,0.59176608,78.065,78.043,0.56953366]
[1771900797713,0.59176608,78.073,78.043,0.56953366]
[1771900800221,0.59176608,78.073,78.051,0.56953366]
[1771900800417,0.59176608,78.088,78.061,0.56953366]
[1771900801417,0.59176608,78.069,78.044,12.81328481]
[1771900801604,0.59176608,78.078,78.051,0.56953366]
[1771900801807,0.59176608,78.078,78.043,0.28432314]
[1771900802007,0.59176608,78.078,78.045,0.56953366]
[1771900802509,0.59176608,78.076,78.047,0.56953366]
[1771900803426,0.59176608,78.069,78.042,13.38301627]
[1771900804127,0.59176608,78.069,78.03,5.05074357]
[1771900804335,0.59176608,78.059,78.025,0.71169523]
[1771900804519,0.59176608,78.058,78.026,0.56953366]
[1771900805730,12.81115082,78.057,78.03,5.05074357]
[1771900806028,0.59176608,78.056,78.031,0.56953366]
[1771900806229,0.59176608,78.056,78.03,5.05074357]
[1771900806426,0.59176608,78.049,78.018,0.56953366]
[1771900806927,0.59176608,78.049,78.021,0.56953366]
[1771900807308,0.59176608,78.049,78.02,5.05074357]
[1771900808234,0.59176608,78.047,78.021,12.81706207]
[1771900808416,0.59176608,78.047,78.022,0.56953366]
[1771900809920,32.02787706,78.057,78.022,0.56953366]
[1771900809921,0.59176608,78.045,78.022,0.56953366]
[1771900810609,0.59176608,78.039,78.01,5.05074357]
[1771900810835,0.59176608,78.039,78.011,0.56953366]
[1771900811623,0.59176608,78.035,78.001,0.56953366]
[1771900811943,51.24267139,78.06,78.011,0.56953366]
[1771900811944,0.59176608,78.033,78.011,0.56953366]
[1771900812320,0.59176608,78.019,77.993,0.56953366]
[1771900812538,0.59176608,78.019,77.994,1.35381244]
[1771900813038,0.59176608,78.019,77.995,0.56953366]
[1771900813213,0.59176608,78.019,77.994,0.78427878]
[1771900814836,0.59176608,78.017,77.994,0.78427878]
[1771900816341,0.59176608,78.017,77.994,1.35381244]
[1771900817247,5.05074357,78.02,77.994,1.35381244]
[1771900817248,12.81788351,78.016,77.994,1.35381244]
[1771900817433,0.59176608,78.015,77.994,1.35381244]
[1771900818443,5.05074357,78.02,77.995,0.57166934]
[1771900818444,12.81733334,78.02,77.995,0.57166934]
[1771900818940,0.59825774,78.019,77.994,0.78427878]
[1771900819321,12.81755492,78.018,77.995,0.57166934]
[1771900819529,0.59825774,78.017,77.995,0.57166934]
[1771900820245,0.59825774,78.017,77.994,0.78427878]
[1771900821051,0.59825774,78.015,77.994,0.78427878]
[1771900822749,1.08854596,77.998,77.994,0.78427878]
[1771900822937,0.54696691,78.007,77.994,0.78427878]
[1771900823949,0.54696691,78.013,77.994,1.32843056]
[1771900824433,0.54696691,78.013,77.994,0.78427878]
[1771900825636,0.54696691,78.013,77.994,0.18669138]
[1771900825836,0.54696691,78.009,77.994,0.18669138]
[1771900826353,0.54696691,78.009,77.994,1e-08]
[1771900826555,44.86489257,78.012,77.97,0.2]
[1771900826556,0.54696691,77.999,77.97,1e-08]
[1771900826750,0.54696691,77.979,77.94,0.74415178]
[1771900827057,0.54696691,77.969,77.94,0.74415178]
[1771900827248,0.54696691,77.969,77.941,0.54415178]
[1771900827649,0.54696691,77.969,77.94,0.2]
[1771900828257,0.54696691,77.967,77.94,0.2]
[1771900828753,0.54696691,77.967,77.941,0.54415178]
[1771900829052,32.06083396,77.977,77.942,0.54415178]
[1771900829352,0.54696691,77.978,77.942,0.54415178]
[1771900830651,12.82478774,77.974,77.942,0.54415178]
[1771900830845,0.54696691,77.973,77.942,0.54415178]
[1771900832459,44.88675711,77.974,77.942,0.54415178]
[1771900832460,0.54696691,77.969,77.942,0.54415178]
[1771900832655,0.54696691,77.967,77.94,0.74415178]
[1771900835865,0.54696691,77.949,77.93,0.2]
[1771900837961,12.82830357,77.953,77.932,0.54415178]
[1771900838168,13.37527048,77.953,77.932,0.54415178]
[1771900838963,12.82830357,77.953,77.932,0.54415178]
[1771900839161,12.82764203,77.957,77.932,0.54415178]
[1771900839364,12.8261648,77.966,77.941,0.54415178]
[1771900839664,0.54696691,77.965,77.941,0.54415178]
[1771900841148,0.54696691,77.963,77.941,0.54415178]
[1771900841354,12.82643271,77.964,77.941,0.54415178]
[1771900841752,0.54696691,77.963,77.941,0.54415178]
[1771900844049,13.37257708,77.969,77.941,0.54415178]
[1771900845258,0.54696691,77.968,77.941,0.54415178]
[1771900845851,5.05074357,77.96,77.933,0.54415178]
[1771900846068,0.54696691,77.959,77.933,0.54415178]
[1771900847454,0.54696691,77.957,77.93,0.2]
[1771900847956,0.54696691,77.957,77.931,0.54415178]
[1771900848468,0.65206266,77.949,77.93,0.2]
[1771900849293,0.65206266,77.949,77.941,0.2]
[1771900849472,0.65206266,77.949,77.93,0.2]
[1771900850670,12.82906553,77.948,77.93,0.2]
[1771900850871,12.82906553,77.948,77.93,0.8871392]
[1771900851276,12.82725535,77.959,77.931,0.6871392]
[1771900851484,12.62725535,77.959,77.931,0.6871392]
[1771900852763,0.65206266,77.956,77.931,0.6871392]
[1771900855682,0.65206266,77.954,77.931,0.6871392]
[1771900856582,0.65206266,77.954,77.931,0.2]
[1771900856873,0.65206266,77.954,77.931,0.8871392]
[1771900857177,0.65206266,77.954,77.932,0.1871392]
[1771900857574,0.65206266,77.949,77.91,5.25074357]
[1771900857771,0.65206266,77.947,77.916,12.83432636]
[1771900858269,0.45206266,77.947,77.926,0.6871392]
[1771900859579,12.8293947,77.946,77.926,0.6871392]
[1771900860281,0.65206266,77.945,77.926,0.6871392]
[1771900860881,12.8293947,77.946,77.926,0.6871392]
[1771900862795,0.65206266,77.945,77.925,0.9281232]
[1771900862969,0.65206266,77.945,77.926,0.6871392]
[1771900864767,12.8297239,77.944,77.926,0.6871392]
[1771900865088,12.82906181,77.949,77.926,0.6871392]
[1771900866287,13.48112447,77.949,77.926,0.6871392]
[1771900866689,0.65206266,77.948,77.926,0.6871392]
[1771900866865,12.82923011,77.947,77.926,0.6871392]
[1771900874488,0.65206266,77.946,77.926,0.6871392]
[1771900875985,12.82923011,77.947,77.91,0.2]
[1771900875986,0.65206266,77.939,77.91,1e-08]
[1771900876184,0.65206266,77.919,77.871,0.6871392]
[1771900876491,12.83384027,77.919,77.89,5.06614631]
[1771900876690,13.48590293,77.919,77.891,0.6871392]
[1771900877676,0.65206266,77.928,77.901,0.6871392]
[1771900879592,12.83054696,77.939,77.903,0.79633687]
[1771900879798,12.83054696,77.939,77.911,0.79633687]
[1771900882103,12.82963415,77.945,77.921,0.81343402]
[1771900882278,0.8403525,77.944,77.921,0.81343402]
[1771900882472,0.8403525,77.944,77.883,9.0546959]
[1771900882473,0.8403525,77.939,77.908,0.81343402]
[1771900883595,0.8403525,77.937,77.908,12.83559588]
[1771900883791,0.8403525,77.937,77.909,0.81343402]
[1771900886202,12.83071159,77.938,77.911,0.81343402]
[1771900888888,32.07389826,77.945,77.91,17.90146911]
[1771900888889,12.82964867,77.945,77.913,0.81343402]
[1771900889488,13.67000117,77.945,77.913,0.81343402]
[1771900889701,0.8403525,77.944,77.913,0.81343402]
[1771900890906,0.8403525,77.944,77.914,12.83466386]
[1771900891100,0.8403525,77.944,77.915,0.81343402]
[1771900891590,13.670241,77.943,77.915,0.81343402]
[1771900891790,0.8403525,77.942,77.915,0.81343402]
[1771900897209,0.8403525,77.942,77.917,0.81343402]
[1771900897911,0.8403525,77.942,77.921,0.81343402]
[1771900898205,0.8403525,77.94,77.913,0.81343402]
[1771900898709,0.8403525,77.94,77.921,0.81343402]
[1771900899809,12.82905368,77.949,77.923,0.81343402]
[1771900900006,51.27984981,78.004,77.931,0.81343402]
[1771900900007,3.69383402,77.975,77.931,0.81343402]
[1771900900211,5.06614631,77.97,77.931,0.81343402]
[1771900900400,3.69383402,77.975,77.931,0.81343402]
[1771900900597,5.06614631,77.97,77.931,0.81343402]
[1771900902102,0.39348401,77.967,77.931,0.81343402]
[1771900903299,5.06614631,77.96,77.931,0.81343402]
[1771900903499,0.40564436,77.959,77.931,0.81343402]
[1771900904299,0.40564436,77.957,77.932,0.81343402]
[1771900905797,12.82741989,77.958,77.932,0.81343402]
[1771900906697,12.82741989,77.958,77.933,12.83153477]
[1771900906922,12.82741989,77.958,77.934,0.81343402]
[1771900910434,12.82741989,77.958,77.941,0.954388]
[1771900910634,0.41752187,77.962,77.941,0.954388]
[1771900910635,12.82692628,77.961,77.941,0.954388]
[1771900911431,0.45687009,77.973,77.941,0.954388]